{"text_format":"3","workbook":"xlsx","n_sheets":4,"sheets":["Modulo di offerta","Dati grafico","Scomposizione costi","Riepilogo costi offerta"],"not_rendered":{"charts":1,"images":2,"defined_names":11},"read":"whole","date_system":"1900"}

{"sheet":"Modulo di offerta","index":0,"n_rows":21,"n_cols":6,"rows_kept":21,"merged":[[0,1,0,4],[1,1,1,2],[7,1,8,1],[7,2,8,2],[10,1,10,5],[12,1,12,5],[14,1,14,5],[15,1,15,2],[15,4,15,5],[16,1,16,2],[16,4,16,5],[18,1,18,5],[19,1,19,2],[19,4,19,5],[20,1,20,2],[20,4,20,5]]}
[null,"Modulo di offerta per costruzione"]
[null,"Informazioni sul proprietario",null,null,"Informazioni sull'appaltatore"]
[null,"Nome","Immettere il Nome del proprietario in questa cella",null,"Società","Immetti il nome della società appaltatrice in questa cella"]
[null,"Indirizzo","Immettere l'Indirizzo del proprietario in questa cella",null,"Nome","Immetti il nome dell'appaltatore in questa cella"]
[null,"CAP Città (provincia)","Immettere CAP, città e provincia del proprietario in questa cella",null,"Indirizzo","Immetti l'indirizzo dell'appaltatore in questa cella"]
[null,"Telefono","Immetti il numero di telefono del proprietario in questa cella",null,"CAP Città (provincia)","Immettere CAP, città e provincia dell'appaltatore in questa cella"]
[null,"Posta elettronica","Immetti l'indirizzo di posta elettronica del proprietario in questa cella",null,"Telefono","Immettere il Numero di telefono dell'appaltatore in questa cella"]
[null,"Nome del progetto","Immetti il nome del progetto in questa cella",null,"Posta elettronica","Immettere l'Indirizzo di posta elettronica dell'appaltatore in questa cella "]
[{"$nulls":4},"Data di completamento","Immetti la data di completamento in questa cella"]
[null,"Ambito di azione"]
[null,"Immetti qui l'ambito di azione del progetto. Digita tutte le specifiche che desideri. \n\nTesto di esempio: Questa è la bozza di un progetto per la costruzione di una grande rampa di scale. Per costruire il telaio, useremo solo legno di dimensioni 2x4 e 2x8, oltre a staffe per travetti. Le scale verranno tagliate dal materiale 2x4. Verranno usate viti di dimensioni non inferiori a 2 pollici.  Verranno usati chiodi di dimensioni non inferiori a 76 mm. Il peso sostenuto per gradino dovrà essere di almeno 226 chili. La scala sarà a livello con quella della casa. Alla casa verrà fissata una pedana. L'appaltatore si occuperà della pulizia."]
[null,"Non inclusi"]
[null,"Immetti qui i dettagli del progetto che non sono inclusi. Digita tutti i dettagli non inclusi in questa offerta. \n\nTesto di esempio: Le ringhiere non verranno installate. Il suolo deve essere preparato dal proprietario. Le scale dovranno essere ritinteggiate dal proprietario."]
[null,"Proposta della società"]
[null,"Immetti qui la proposta della società. Digita una panoramica della proposta che include il nome di chi ha proposto il lavoro, la data di completamento prevista e l'importo della proposta.\n\nTesto di esempio: Noi, Nome della società, proponiamo il suddetto ambito di azione da completarsi entro Data di completamento per l'importo di Importo totale."]
[]
[null,"Inviato da (Rappresentante della società)",null,null,"Data"]
[null,"Accettazione del proprietario"]
[null,"Immetti qui l'accettazione del proprietario. Digita il nome del proprietario in una dichiarazione di accettazione che include la data di completamento e l'importo totale indicato nella proposta della società. \n\nTesto di esempio: Io, Nome del proprietario, accetto il suddetto ambito di azione da completarsi entro Data di completamento per l'importo di Importo totale."]
[]
[null,"Inviato da (proprietario della casa o rappresentante autorizzato)",null,null,"Data"]

{"sheet":"Dati grafico","index":1,"n_rows":7,"n_cols":3,"rows_kept":7,"hidden":true}
[]
[null,null,"Totale"]
[null,{"$f":"INDEX(ArticoliOfferta[#Data],MATCH(1,ArticoliOfferta[Costi classificati],0),2)","v":"Spese per manodopera"},{"$f":"INDEX(ArticoliOfferta[#Data],MATCH(1,ArticoliOfferta[Costi classificati],0),4)","v":200}]
[null,{"$f":"INDEX(ArticoliOfferta[#Data],MATCH(2,ArticoliOfferta[Costi classificati],0),2)","v":"Legno 2x4x10"},{"$f":"INDEX(ArticoliOfferta[#Data],MATCH(2,ArticoliOfferta[Costi classificati],0),4)","v":99.39999999999999}]
[null,{"$f":"INDEX(ArticoliOfferta[#Data],MATCH(3,ArticoliOfferta[Costi classificati],0),2)","v":"Staffe per travetti"},{"$f":"INDEX(ArticoliOfferta[#Data],MATCH(3,ArticoliOfferta[Costi classificati],0),4)","v":74.7}]
[null,{"$f":"INDEX(ArticoliOfferta[#Data],MATCH(4,ArticoliOfferta[Costi classificati],0),2)","v":"Legno 2x8x10"},{"$f":"INDEX(ArticoliOfferta[#Data],MATCH(4,ArticoliOfferta[Costi classificati],0),4)","v":33.75}]
[null,{"$f":"INDEX(ArticoliOfferta[#Data],MATCH(5,ArticoliOfferta[Costi classificati],0),2)","v":"Paio di guanti in pelle"},{"$f":"INDEX(ArticoliOfferta[#Data],MATCH(5,ArticoliOfferta[Costi classificati],0),4)","v":15.5}]

{"sheet":"Scomposizione costi","index":2,"n_rows":14,"n_cols":6,"rows_kept":14,"merged":[[0,1,0,4],[1,1,1,4]]}
[null,"Scomposizione costi",{"$nulls":3}," "]
[null,"Elenco dei materiali e costi"]
[null,"Qtà","Descrizione","Costo","Totale","Costi classificati"]
[null,5,"Legno 2x8x10",{"v":6.75,"d":"€ 6.75"},{"$f":"IFERROR(ArticoliOfferta[[#This Row],[Costo]]*ArticoliOfferta[[#This Row],[Qtà]], \"\")","v":{"v":33.75,"d":"€ 33.75"}},{"$f":"_xlfn.RANK.EQ(ArticoliOfferta[[#This Row],[Totale]],ArticoliOfferta[Totale])","v":4}]
[null,20,"Legno 2x4x10",{"v":4.97,"d":"€ 4.97"},{"$f":"IFERROR(ArticoliOfferta[[#This Row],[Costo]]*ArticoliOfferta[[#This Row],[Qtà]], \"\")","v":{"v":99.39999999999999,"d":"€ 99.40"}},{"$f":"_xlfn.RANK.EQ(ArticoliOfferta[[#This Row],[Totale]],ArticoliOfferta[Totale])","v":2}]
[null,30,"Staffe per travetti",{"v":2.49,"d":"€ 2.49"},{"$f":"IFERROR(ArticoliOfferta[[#This Row],[Costo]]*ArticoliOfferta[[#This Row],[Qtà]], \"\")","v":{"v":74.7,"d":"€ 74.70"}},{"$f":"_xlfn.RANK.EQ(ArticoliOfferta[[#This Row],[Totale]],ArticoliOfferta[Totale])","v":3}]
[null,2,"Scatola di viti da 2 pollici",{"v":6.67,"d":"€ 6.67"},{"$f":"IFERROR(ArticoliOfferta[[#This Row],[Costo]]*ArticoliOfferta[[#This Row],[Qtà]], \"\")","v":{"v":13.34,"d":"€ 13.34"}},{"$f":"_xlfn.RANK.EQ(ArticoliOfferta[[#This Row],[Totale]],ArticoliOfferta[Totale])","v":6}]
[null,2,"Scatola di chiodi da 76 mm",{"v":3.25,"d":"€ 3.25"},{"$f":"IFERROR(ArticoliOfferta[[#This Row],[Costo]]*ArticoliOfferta[[#This Row],[Qtà]], \"\")","v":{"v":6.5,"d":"€ 6.50"}},{"$f":"_xlfn.RANK.EQ(ArticoliOfferta[[#This Row],[Totale]],ArticoliOfferta[Totale])","v":7}]
[null,2,"Paio di guanti in pelle",{"v":7.75,"d":"€ 7.75"},{"$f":"IFERROR(ArticoliOfferta[[#This Row],[Costo]]*ArticoliOfferta[[#This Row],[Qtà]], \"\")","v":{"v":15.5,"d":"€ 15.50"}},{"$f":"_xlfn.RANK.EQ(ArticoliOfferta[[#This Row],[Totale]],ArticoliOfferta[Totale])","v":5}]
[null,2,"Spese per manodopera",{"v":100,"d":"€ 100.00"},{"$f":"IFERROR(ArticoliOfferta[[#This Row],[Costo]]*ArticoliOfferta[[#This Row],[Qtà]], \"\")","v":{"v":200,"d":"€ 200.00"}},{"$f":"_xlfn.RANK.EQ(ArticoliOfferta[[#This Row],[Totale]],ArticoliOfferta[Totale])","v":1}]
[4,null,null,"Subtotale",{"$f":"SUBTOTAL(109,ArticoliOfferta[Totale])","v":{"v":443.18999999999994,"d":"€ 443.19"}}]
[5,null,null,"Aliquota IVA",{"v":0.075,"d":"7.50%"}]
[{"$nulls":3},"IVA",{"$f":"IFERROR(AliquotaIVA*ArticoliOfferta[[#Totals],[Totale]], \"\")","v":{"v":33.23924999999999,"d":"€ 33.24"}}]
[{"$nulls":3},"Totale complessivo",{"$f":"IFERROR(IVA+ArticoliOfferta[[#Totals],[Totale]], \"\")","v":{"v":476.4292499999999,"d":"€ 476.43"}}]

{"sheet":"Riepilogo costi offerta","index":3,"n_rows":3,"n_cols":4,"rows_kept":3}
[null,"Riepilogo costi offerta"]
[null,"Analisi di materiali e costi",null,"Note"]
[null,"Grafico a torta che mostra i primi 5 costi per materiale. I dati sono basati sulla tabella Elementi dell'offerta nel foglio di lavoro Analisi dei costi",null,"Immetti le note in questa cella."]